fUSD/lending_fUSD_20240318
["ID","MTS","AMOUNT","RATE_DAILY","PERIOD"]
[319486805,1710800021557,-750.9,0.00026301,2]
[319486806,1710800021567,-6038.49,0.00026301,2]
[319486807,1710800021577,-1615.86,0.00026301,2]
[319486808,1710800021587,-2385.09,0.00026301,2]
[319486809,1710800021598,-1135.58,0.00026301,2]
[319486810,1710800021609,-979.41,0.00026301,2]
[319486811,1710800021618,-6456.64,0.00026301,2]
[319486812,1710800021628,-942.12,0.00026301,2]
[319486813,1710800021639,-1504.81,0.00026301,2]
[319486814,1710800021649,-398.01221285,0.00026301,2]
[319486815,1710800021660,-854.48,0.00026301,2]
[319486816,1710800021670,-508.22,0.00026301,2]
[319486817,1710800021679,-662.67,0.00026301,2]
[319486818,1710800021691,-40338.6,0.00026301,2]
[319486819,1710800021700,-4121.83,0.00026301,2]
[319486820,1710800021709,-2520.23,0.00026301,2]
[319486821,1710800021721,-2157.68,0.00026301,2]
[319486822,1710800021731,-1120.6,0.00026301,2]
[319486823,1710800021742,-500.0,0.00026301,2]
[319486824,1710800021751,-2358.27,0.00026301,2]
[319486825,1710800021761,-2259.16,0.00026301,2]
[319486826,1710800021772,-1192.63,0.00026301,2]
[319486827,1710800021781,-6231.23,0.00026301,2]
[319486828,1710800021790,-150.95,0.00026301,2]
[319486829,1710800021799,-2827.05937,0.00026334,2]
[319486830,1710800021808,-15297.48386,0.00026334,2]
[319486831,1710800021817,-429.480478,0.00026334,2]
[319486832,1710800021827,-6055.244887,0.00026334,2]
[319486833,1710800021836,-445.921145,0.00026334,2]
[319486834,1710800021846,-4350.436317,0.00026334,2]
[319486835,1710800021855,-4883.515609,0.00026334,2]
[319486836,1710800021864,-1917.369177,0.00026334,2]
[319486837,1710800021873,-492.466477,0.00026334,2]
[319486838,1710800021883,-1554.925549,0.00026334,2]
[319486839,1710800021892,-826.131726,0.00026334,2]
[319486840,1710800021902,-4326.02536,0.00026334,2]
[319486841,1710800021911,-998.550556,0.00026334,2]
[319486842,1710800021921,-201.770721,0.00026334,2]
[319486843,1710800021930,-1010.046116,0.00026334,2]
[319486844,1710800021940,-360.895303,0.00026334,2]
[319486845,1710800021950,-156.382123,0.00026334,2]
[319486846,1710800021959,-10032.029962,0.00026334,2]
[319486847,1710800021968,-2478.395176,0.00026334,2]
[319486848,1710800021978,-15587.619795,0.00026334,2]
[319486849,1710800021987,-166.440208,0.00026334,2]
[319486850,1710800021997,-172.016155,0.00026334,2]
[319486851,1710800022006,-150.0,0.00026364,4]
[319486852,1710800022016,-1006.0,0.00026372,2]
[319486853,1710800022025,-4623.0,0.00026372,2]
[319486854,1710800022035,-1063.0,0.00026372,2]
[319486855,1710800022044,-341.0,0.00026372,2]
[319486856,1710800022053,-25558.25828784,0.000264,2]
[319486857,1710800022062,-150.0,0.0002641,2]
[319486858,1710800022072,-150.0,0.00026419,4]
[319486859,1710800022081,-150.0,0.00026487,4]
[319486860,1710800022090,-1116.0,0.000265,14]
[319486861,1710800022100,-150.0,0.00026517,2]
[319486862,1710800022109,-162.6041618,0.00026529,2]
[319486863,1710800022119,-153.80188616,0.00026533,2]
[319486864,1710800022128,-151.184824,0.00026549,2]
[319486865,1710800022139,-171.714221,0.00026549,2]
[319486866,1710800022149,-180.793729,0.00026549,2]
[319486867,1710800022160,-171.769411,0.00026549,2]
[319486868,1710800022170,-150.0,0.00026556,4]
[319486869,1710800022179,-500.0,0.00026568,4]
[319486870,1710800022189,-500.0,0.00026568,4]
[319486871,1710800022198,-500.0,0.00026568,4]
[319486872,1710800022207,-500.0,0.00026568,4]
[319486873,1710800022217,-500.0,0.00026568,4]
[319486874,1710800022226,-500.0,0.00026568,4]
[319486875,1710800022235,-500.0,0.00026568,4]
[319486876,1710800022246,-500.0,0.00026568,4]
[319486877,1710800022255,-500.0,0.00026568,4]
[319486878,1710800022265,-500.0,0.00026568,4]
[319486879,1710800022275,-500.0,0.00026568,4]
[319486880,1710800022284,-500.0,0.00026568,4]
[319486881,1710800022294,-500.0,0.00026568,4]
[319486882,1710800022303,-500.0,0.00026568,4]
[319486883,1710800022313,-500.0,0.00026568,4]
[319486884,1710800022322,-500.0,0.00026568,4]
[319486885,1710800022331,-500.0,0.00026568,4]
[319486886,1710800022341,-500.0,0.00026568,4]
[319486887,1710800022350,-500.0,0.00026568,4]
[319486888,1710800022360,-500.0,0.00026568,4]
[319486889,1710800022369,-500.0,0.00026568,4]
[319486890,1710800022378,-500.0,0.00026568,4]
[319486891,1710800022388,-191.0,0.00026568,4]
[319486892,1710800022398,-500.0,0.0002657,120]
[319486893,1710800022407,-150.0,0.00026574,2]
[319486894,1710800022417,-754.65,0.00026575,2]
[319486895,1710800022426,-500.0,0.00026575,2]
[319486896,1710800022436,-1183.48,0.00026575,2]
[319486897,1710800022446,-841.06,0.00026575,2]
[319486898,1710800022455,-1050.21,0.00026575,2]
[319486899,1710800022466,-603.24,0.00026575,2]
[319486900,1710800022475,-864.95,0.00026575,2]
[319486901,1710800022486,-801.98,0.00026575,2]
[319486902,1710800022497,-2023.13,0.00026575,2]
[319486903,1710800022507,-2257.25,0.00026575,2]
[319486904,1710800022517,-1080.91,0.00026575,2]
[319486905,1710800022527,-794.11,0.00026575,2]
[319486906,1710800022536,-753.34,0.00026575,2]
[319486907,1710800022546,-500.0,0.00026575,2]
[319486908,1710800022555,-841.73,0.00026575,2]
[319486909,1710800022565,-637.28,0.00026575,2]
[319486910,1710800022575,-2219.16,0.00026575,2]
[319486911,1710800022584,-822.95,0.00026575,2]
[319486912,1710800022594,-532.03,0.00026575,2]
[319486913,1710800022604,-500.0,0.00026575,2]
[319486914,1710800022618,-666.77,0.00026575,2]
[319486915,1710800022627,-500.0,0.00026575,2]
[319486916,1710800022637,-2410.75,0.00026575,2]
[319486917,1710800022647,-1083.62,0.00026575,2]
[319486918,1710800022657,-1096.76,0.00026575,2]
[319486919,1710800022666,-1153.52,0.00026575,2]
[319486920,1710800022676,-1579.95,0.00026575,2]
[319486921,1710800022686,-1079.02,0.00026575,2]
[319486922,1710800022695,-553.86929797,0.00026575,2]
[319486923,1710800022705,-500.0,0.00026575,2]
[319486924,1710800022715,-604.92,0.00026575,2]
[319486925,1710800022725,-2112.17,0.00026575,2]
[319486926,1710800022735,-788.06,0.00026575,2]
[319486927,1710800022746,-965.6,0.00026575,2]
[319486928,1710800022756,-567.24,0.00026575,2]
[319486929,1710800022765,-1057.53,0.00026575,2]
[319486930,1710800022775,-1346.77,0.00026575,2]
[319486931,1710800022785,-712.98,0.00026575,2]
[319486932,1710800022794,-624.81,0.00026575,2]
[319486933,1710800022803,-1820.6,0.00026575,2]
[319486934,1710800022813,-500.0,0.00026575,2]
[319486935,1710800022822,-750.79,0.00026575,2]
[319486936,1710800022832,-628.64,0.00026575,2]
[319486937,1710800022841,-787.89,0.00026575,2]
[319486938,1710800022851,-593.51,0.00026575,2]
[319486939,1710800022862,-750.42,0.00026575,2]
[319486940,1710800022872,-622.98,0.00026575,2]
[319486941,1710800022883,-1628.79,0.00026575,2]
[319486942,1710800022893,-500.0,0.00026575,2]
[319486943,1710800022902,-3414.73,0.00026575,2]
[319486944,1710800022912,-830.73,0.00026575,2]
[319486945,1710800022921,-837.33,0.00026575,2]
[319486946,1710800022931,-1594.83,0.00026575,2]
[319486947,1710800022940,-1565.76,0.00026575,2]
[319486948,1710800022950,-2289.86,0.00026575,2]
[319486949,1710800022959,-2327.27,0.00026575,2]
[319486950,1710800022969,-1043.46,0.00026575,2]
[319486951,1710800022979,-1166.79,0.00026575,2]
[319486952,1710800022990,-549.91,0.00026575,2]
[319486953,1710800022999,-568.66,0.00026575,2]
[319486954,1710800023009,-771.19,0.00026575,2]
[319486955,1710800023019,-2753.66,0.00026575,2]
[319486956,1710800023029,-1513.08,0.00026575,2]
[319486957,1710800023038,-1842.48,0.00026575,2]
[319486958,1710800023048,-1460.74,0.00026575,2]
[319486959,1710800023058,-942.07,0.00026575,2]
[319486960,1710800023068,-895.46,0.00026575,2]
[319486961,1710800023078,-1989.79,0.00026575,2]
[319486962,1710800023087,-1990.34,0.00026575,2]
[319486963,1710800023097,-500.0,0.00026575,2]
[319486964,1710800023106,-594.54,0.00026575,2]
[319486965,1710800023116,-570.11,0.00026575,2]
[319486966,1710800023125,-500.0,0.00026575,2]
[319486967,1710800023135,-2010.18,0.00026575,2]
[319486968,1710800023144,-1089.38,0.00026575,2]
[319486969,1710800023154,-1225.65,0.00026575,2]
[319486970,1710800023164,-705.19,0.00026575,2]
[319486971,1710800023174,-2976.15,0.00026575,2]
[319486972,1710800023184,-508.99,0.00026575,2]
[319486973,1710800023193,-501.15,0.00026575,2]
[319486974,1710800023203,-1173.9,0.00026575,2]
[319486975,1710800023212,-1787.1,0.00026575,2]
[319486976,1710800023222,-462.16334867,0.00026575,2]
[319486977,1710800023233,-1969.89,0.00026575,2]
[319486978,1710800023243,-551.56,0.00026575,2]
[319486979,1710800023253,-634.39,0.00026575,2]
[319486980,1710800023262,-515.85,0.00026575,2]
[319486981,1710800023272,-1763.14,0.00026575,2]
[319486982,1710800023282,-500.0,0.00026575,2]
[319486983,1710800023292,-1610.23,0.00026575,2]
[319486984,1710800023301,-698.44,0.00026575,2]
[319486985,1710800023561,-757.78,0.00026575,2]
[319486986,1710800023574,-1107.01,0.00026575,2]
[319486987,1710800023584,-3621.53,0.00026575,2]
[319486988,1710800023595,-3272.98,0.00026575,2]
[319486989,1710800023606,-500.0,0.00026575,2]
[319486990,1710800023616,-617.42,0.00026575,2]
[319486991,1710800023625,-500.0,0.00026575,2]
[319486992,1710800023635,-1059.1,0.00026575,2]
[319486993,1710800023644,-833.03,0.00026575,2]
[319486994,1710800023653,-2995.13,0.00026575,2]
[319486995,1710800023663,-500.0,0.00026575,2]
[319486996,1710800023674,-1379.17,0.00026575,2]
[319486997,1710800023683,-2205.14,0.00026575,2]
[319486998,1710800023693,-1296.97,0.00026575,2]
[319486999,1710800023701,-684.91,0.00026575,2]
[319487000,1710800023710,-1167.23,0.00026575,2]
[319487001,1710800023720,-505.2172145,0.00026575,2]
[319487002,1710800023729,-1111.67,0.00026575,2]
[319487003,1710800023738,-1840.74,0.00026575,2]
[319487004,1710800023748,-1159.15,0.00026575,2]
[319487005,1710800023758,-1071.26,0.00026575,2]
[319487006,1710800023767,-732.2,0.00026575,2]
[319487007,1710800023776,-2487.12,0.00026575,2]
[319487008,1710800023785,-510.92704905,0.00026575,2]
[319487009,1710800023794,-1409.81,0.00026575,2]
[319487010,1710800023803,-2258.29,0.00026575,2]
[319487011,1710800023813,-885.61,0.00026575,2]
[319487012,1710800023822,-728.7,0.00026575,2]
[319487013,1710800023830,-981.29,0.00026575,2]
[319487014,1710800023840,-619.02,0.00026575,2]
[319487015,1710800023849,-3027.38,0.00026575,2]
[319487016,1710800023858,-2230.77,0.00026575,2]
[319487017,1710800023868,-2148.85,0.00026575,2]
[319487018,1710800023877,-847.31,0.00026575,2]
[319487019,1710800023886,-500.0,0.00026575,2]
[319487020,1710800023895,-1040.92,0.00026575,2]
[319487021,1710800023905,-1016.05,0.00026575,2]
[319487022,1710800023914,-625.78,0.00026575,2]
[319487023,1710800023923,-1988.29,0.00026575,2]
[319487024,1710800023932,-673.87,0.00026575,2]
[319487025,1710800023942,-803.43,0.00026575,2]
[319487026,1710800023951,-2712.0,0.00026575,2]
[319487027,1710800023960,-618.27,0.00026575,2]
[319487028,1710800023969,-1492.36,0.00026575,2]
[319487029,1710800023978,-925.33,0.00026575,2]
[319487030,1710800023987,-1934.24,0.00026575,2]
[319487031,1710800023998,-500.0,0.00026575,2]
[319487032,1710800024007,-1347.96,0.00026575,2]
[319487033,1710800024016,-618.35,0.00026575,2]
[319487034,1710800024026,-3249.34,0.00026575,2]
[319487035,1710800024035,-736.87,0.00026575,2]
[319487036,1710800024044,-1048.99,0.00026575,2]
[319487037,1710800024053,-695.99,0.00026575,2]
[319487038,1710800024062,-185.02436812,0.00026575,2]
[319487039,1710800024071,-1686.42,0.00026575,2]
[319487040,1710800024080,-500.0,0.00026575,2]
[319487041,1710800024090,-2027.85,0.00026575,2]
[319487042,1710800024099,-3300.65,0.00026575,2]
[319487043,1710800024108,-1879.8,0.00026575,2]
[319487044,1710800024117,-600.13,0.00026575,2]
[319487045,1710800024126,-689.62,0.00026575,2]
[319487046,1710800024135,-3602.93,0.00026575,2]
[319487047,1710800024145,-500.0,0.00026575,2]
[319487048,1710800024154,-839.53,0.00026575,2]
[319487049,1710800024163,-734.91,0.00026575,2]
[319487050,1710800024173,-1753.56,0.00026575,2]
[319487051,1710800024182,-839.74,0.00026575,2]
[319487052,1710800024191,-500.0,0.00026575,2]
[319487053,1710800024200,-4941.23,0.00026575,2]
[319487054,1710800024210,-924.55,0.00026575,2]
[319487055,1710800024219,-646.58,0.00026575,2]
[319487056,1710800024228,-1444.11,0.00026575,2]
[319487057,1710800024237,-1862.07,0.00026575,2]
[319487058,1710800024247,-2596.77,0.00026575,2]
[319487059,1710800024256,-1913.61,0.00026575,2]
[319487060,1710800024266,-600.66,0.00026575,2]
[319487061,1710800024275,-1169.17,0.00026575,2]
[319487062,1710800024284,-501.0,0.00026575,2]
[319487063,1710800024293,-671.74,0.00026575,2]
[319487064,1710800024302,-500.0,0.00026575,2]
[319487065,1710800024311,-660.79,0.00026575,2]
[319487066,1710800024320,-4429.56,0.00026575,2]
[319487067,1710800024330,-645.13,0.00026575,2]
[319487068,1710800024339,-1387.34,0.00026575,2]
[319487069,1710800024348,-1092.65,0.00026575,2]
[319487070,1710800024358,-775.21,0.00026575,2]
[319487071,1710800024367,-1234.18,0.00026575,2]
[319487072,1710800024377,-1640.92,0.00026575,2]
[319487073,1710800024386,-660.8,0.00026575,2]
[319487074,1710800024395,-618.02,0.00026575,2]
[319487075,1710800024405,-2991.4,0.00026575,2]
[319487076,1710800024415,-500.0,0.00026575,2]
[319487077,1710800024424,-526.67,0.00026575,2]
[319487078,1710800024434,-520.66,0.00026575,2]
[319487079,1710800024443,-3432.69,0.00026575,2]
[319487080,1710800024453,-929.21,0.00026575,2]
[319487081,1710800024462,-2512.6,0.00026575,2]
[319487082,1710800024471,-553.17,0.00026575,2]
[319487083,1710800024480,-632.91,0.00026575,2]
[319487084,1710800024490,-587.03,0.00026575,2]
[319487085,1710800024499,-500.0,0.00026575,2]
[319487086,1710800024508,-500.0,0.00026575,2]
[319487087,1710800024517,-1670.28,0.00026575,2]
[319487088,1710800024526,-1508.72,0.00026575,2]
[319487089,1710800024536,-500.0,0.00026575,2]
[319487090,1710800024545,-588.94,0.00026575,2]
[319487091,1710800024555,-992.88,0.00026575,2]
[319487092,1710800024565,-2672.81,0.00026575,2]
[319487093,1710800024576,-1421.34,0.00026575,2]
[319487094,1710800024585,-1479.34,0.00026575,2]
[319487095,1710800024595,-778.13,0.00026575,2]
[319487096,1710800024606,-549.69,0.00026575,2]
[319487097,1710800024618,-1591.7,0.00026575,2]
[319487098,1710800024628,-1096.72,0.00026575,2]
[319487099,1710800024637,-2210.21,0.00026575,2]
[319487100,1710800024646,-1855.24,0.00026575,2]
[319487101,1710800024655,-407.65,0.00026575,2]
[319487102,1710800024665,-869.7,0.00026575,2]
[319487103,1710800024674,-1747.53,0.00026575,2]
[319487104,1710800024683,-680.92,0.00026575,2]
[319487105,1710800024693,-665.42,0.00026575,2]
[319487106,1710800024701,-1181.58,0.00026575,2]
[319487107,1710800024710,-1501.92,0.00026575,2]
[319487108,1710800024720,-2323.42,0.00026575,2]
[319487109,1710800024729,-2355.45,0.00026575,2]
[319487110,1710800024738,-2348.13,0.00026575,2]
[319487111,1710800024749,-1841.43,0.00026575,2]
[319487112,1710800024758,-633.95,0.00026575,2]
[319487113,1710800024767,-2789.32,0.00026575,2]
[319487114,1710800024777,-1047.26,0.00026575,2]
[319487115,1710800024786,-506.7,0.00026575,2]
[319487116,1710800024795,-500.0,0.00026575,2]
[319487117,1710800024805,-2028.96,0.00026575,2]
[319487118,1710800024814,-1121.74,0.00026575,2]
[319487119,1710800024824,-727.29,0.00026575,2]
[319487120,1710800024834,-500.0,0.00026575,2]
[319487121,1710800024843,-1964.52,0.00026575,2]
[319487122,1710800024852,-800.57,0.00026575,2]
[319487123,1710800024861,-500.0,0.00026575,2]
[319487124,1710800024870,-855.83,0.00026575,2]
[319487125,1710800024879,-515.18,0.00026575,2]
[319487126,1710800024889,-805.44,0.00026575,2]
[319487127,1710800024898,-1465.25,0.00026575,2]
[319487128,1710800024907,-703.59,0.00026575,2]
[319487129,1710800024916,-1137.55,0.00026575,2]
[319487130,1710800024925,-1372.51,0.00026575,2]
[319487131,1710800024935,-1311.42,0.00026575,2]
[319487132,1710800024944,-890.31,0.00026575,2]
[319487133,1710800024953,-693.23,0.00026575,2]
[319487134,1710800024962,-606.63,0.00026575,2]
[319487135,1710800024970,-1355.8,0.00026575,2]
[319487136,1710800024979,-633.23,0.00026575,2]
[319487137,1710800024989,-422.6990769,0.00026575,2]
[319487138,1710800025000,-931.19,0.00026575,2]
[319487139,1710800025010,-1311.22,0.00026575,2]
[319487140,1710800025019,-560.88,0.00026575,2]
[319487141,1710800025028,-578.22,0.00026575,2]
[319487142,1710800025037,-931.2,0.00026575,2]
[319487143,1710800025046,-1373.23,0.00026575,2]
[319487144,1710800025055,-1189.08,0.00026575,2]
[319487145,1710800025064,-500.0,0.00026575,2]
[319487146,1710800025073,-582.88,0.00026575,2]
[319487147,1710800025082,-807.67,0.00026575,2]
[319487148,1710800025091,-500.0,0.00026575,2]
[319487149,1710800025101,-630.96829367,0.00026575,2]
[319487150,1710800025110,-500.0,0.00026575,2]
[319487151,1710800025119,-1318.07,0.00026575,2]
[319487152,1710800025128,-2537.59,0.00026575,2]
[319487153,1710800025138,-1833.13,0.00026575,2]
[319487154,1710800025147,-584.63,0.00026575,2]
[319487155,1710800025156,-922.71,0.00026575,2]
[319487156,1710800025166,-522.08,0.00026575,2]
[319487157,1710800025175,-667.48,0.00026575,2]
[319487158,1710800025184,-1186.68,0.00026575,2]
[319487159,1710800025193,-998.55,0.00026575,2]
[319487160,1710800025203,-1847.99,0.00026575,2]
[319487161,1710800025212,-797.09,0.00026575,2]
[319487162,1710800025221,-1079.26,0.00026575,2]
[319487163,1710800025230,-1856.02,0.00026575,2]
[319487164,1710800025239,-1186.25,0.00026575,2]
[319487165,1710800025251,-897.94,0.00026575,2]
[319487166,1710800025260,-1418.3,0.00026575,2]
[319487167,1710800025270,-844.5,0.00026575,2]
[319487168,1710800025278,-1228.33,0.00026575,2]
[319487169,1710800025288,-656.86,0.00026575,2]
[319487170,1710800025297,-1254.05,0.00026575,2]
[319487171,1710800025307,-1220.28,0.00026575,2]
[319487172,1710800025316,-524.26,0.00026575,2]
[319487173,1710800025325,-544.86,0.00026575,2]
[319487174,1710800025335,-1112.38,0.00026575,2]
[319487175,1710800025344,-990.25,0.00026575,2]
[319487176,1710800025353,-1554.62,0.00026575,2]
[319487177,1710800025362,-615.98,0.00026575,2]
[319487178,1710800025371,-1046.24,0.00026575,2]
[319487179,1710800025380,-525.88,0.00026575,2]
[319487180,1710800025390,-1155.33,0.00026575,2]
[319487181,1710800025399,-527.83,0.00026575,2]
[319487182,1710800025409,-500.0,0.00026575,2]
[319487183,1710800025418,-3244.32,0.00026575,2]
[319487184,1710800025427,-1017.43,0.00026575,2]
[319487185,1710800025436,-1754.86,0.00026575,2]
[319487186,1710800025445,-1859.5,0.00026575,2]
[319487187,1710800025455,-1204.75,0.00026575,2]
[319487188,1710800025465,-721.17,0.00026575,2]
[319487189,1710800025474,-1304.47,0.00026575,2]
[319487190,1710800025483,-1387.32,0.00026575,2]
[319487191,1710800025494,-1084.75,0.00026575,2]
[319487192,1710800025503,-984.35,0.00026575,2]
[319487193,1710800025513,-500.0,0.00026575,2]
[319487194,1710800025522,-1042.11,0.00026575,2]
[319487195,1710800025532,-550.03,0.00026575,2]
[319487196,1710800025542,-3263.23,0.00026575,2]
[319487197,1710800025552,-1980.05,0.00026575,2]
[319487198,1710800025562,-1006.81,0.00026575,2]
[319487199,1710800025571,-1334.24,0.00026575,2]
[319487200,1710800025580,-772.45,0.00026575,2]
[319487201,1710800025590,-879.01,0.00026575,2]
[319487202,1710800025600,-577.06,0.00026575,2]
[319487203,1710800025610,-1289.15,0.00026575,2]
[319487204,1710800025620,-1162.86,0.00026575,2]
[319487205,1710800025634,-500.0,0.00026575,2]
[319487206,1710800025654,-539.59,0.00026575,2]
[319487207,1710800025669,-1284.59,0.00026575,2]
[319487208,1710800025688,-1343.86,0.00026575,2]
[319487209,1710800025705,-2423.47,0.00026575,2]
[319487210,1710800025722,-790.0,0.00026575,2]
[319487211,1710800025739,-1561.78,0.00026575,2]
[319487212,1710800025754,-2345.93,0.00026575,2]
[319487213,1710800025775,-1543.03,0.00026575,2]
[319487214,1710800025789,-688.89,0.00026575,2]
[319487215,1710800025809,-500.0,0.00026575,2]
[319487216,1710800025829,-779.42,0.00026575,2]
[319487217,1710800025844,-1455.91,0.00026575,2]
[319487218,1710800025859,-964.51,0.00026575,2]
[319487219,1710800025875,-1604.71,0.00026575,2]
[319487220,1710800025890,-865.84,0.00026575,2]
[319487221,1710800025909,-1347.47,0.00026575,2]
[319487222,1710800025924,-1883.82,0.00026575,2]
[319487223,1710800025939,-500.0,0.00026575,2]
[319487224,1710800025953,-615.15,0.00026575,2]
[319487225,1710800025969,-743.05,0.00026575,2]
[319487226,1710800025983,-1288.43,0.00026575,2]
[319487227,1710800025999,-532.05,0.00026575,2]
[319487228,1710800026013,-1050.86,0.00026575,2]
[319487229,1710800026027,-568.35,0.00026575,2]
[319487230,1710800026042,-801.95,0.00026575,2]
[319487231,1710800026057,-3692.13,0.00026575,2]
[319487232,1710800026072,-1021.88,0.00026575,2]
[319487233,1710800026086,-1387.79,0.00026575,2]
[319487234,1710800026100,-602.97833785,0.00026575,2]
[319487235,1710800026114,-1736.34,0.00026575,2]
[319487236,1710800026127,-722.05,0.00026575,2]
[319487237,1710800026142,-2682.4,0.00026575,2]
[319487238,1710800026157,-917.72,0.00026575,2]
[319487239,1710800026172,-1582.16,0.00026575,2]
[319487240,1710800026187,-500.0,0.00026575,2]
[319487241,1710800026202,-500.0,0.00026575,2]
[319487242,1710800026216,-899.67,0.00026575,2]
[319487243,1710800026230,-1197.99,0.00026575,2]
[319487244,1710800026245,-2570.57,0.00026575,2]
[319487245,1710800026260,-832.49,0.00026575,2]
[319487246,1710800026275,-2336.68,0.00026575,2]
[319487247,1710800026290,-714.57,0.00026575,2]
[319487248,1710800026305,-570.84,0.00026575,2]
[319487249,1710800026320,-572.14,0.00026575,2]
[319487250,1710800026336,-1267.22,0.00026575,2]
[319487251,1710800026351,-1986.27,0.00026575,2]
[319487252,1710800026365,-1031.5,0.00026575,2]
[319487253,1710800026380,-1487.73,0.00026575,2]
[319487254,1710800026395,-713.53,0.00026575,2]
[319487255,1710800026410,-1462.06,0.00026575,2]
[319487256,1710800026425,-295.0913266,0.00026575,2]
[319487257,1710800026442,-1113.91,0.00026575,2]
[319487258,1710800026459,-662.67,0.00026575,2]
[319487259,1710800026475,-1374.98,0.00026575,2]
[319487260,1710800026490,-2453.88,0.00026575,2]
[319487261,1710800026506,-584.72,0.00026575,2]
[319487262,1710800026522,-2831.64,0.00026575,2]
[319487263,1710800026537,-1349.99,0.00026575,2]
[319487264,1710800026552,-1580.15,0.00026575,2]
[319487265,1710800026567,-1466.21,0.00026575,2]
[319487266,1710800026584,-500.0,0.00026575,2]
[319487267,1710800026600,-1118.72,0.00026575,2]
[319487268,1710800026620,-606.91,0.00026575,2]
[319487269,1710800026635,-500.0,0.00026575,2]
[319487270,1710800026650,-1958.41,0.00026575,2]
[319487271,1710800026666,-605.4,0.00026575,2]
[319487272,1710800026679,-500.0,0.00026575,2]
[319487273,1710800026694,-500.0,0.00026575,2]
[319487274,1710800026710,-942.42,0.00026575,2]
[319487275,1710800026726,-569.15,0.00026575,2]
[319487276,1710800026741,-500.0,0.00026575,2]
[319487277,1710800026755,-1400.41,0.00026575,2]
[319487278,1710800026768,-941.12,0.00026575,2]
[319487279,1710800026783,-500.0,0.00026575,2]
[319487280,1710800026798,-1781.44,0.00026575,2]
[319487281,1710800026812,-1912.95,0.00026575,2]
[319487282,1710800026825,-713.68,0.00026575,2]
[319487283,1710800026840,-1203.57,0.00026575,2]
[319487284,1710800026855,-905.72,0.00026575,2]
[319487285,1710800026871,-500.0,0.00026575,2]
[319487286,1710800026886,-4393.41,0.00026575,2]
[319487287,1710800026901,-2303.75,0.00026575,2]
[319487288,1710800026915,-1144.14,0.00026575,2]
[319487289,1710800026929,-1229.49,0.00026575,2]
[319487290,1710800026943,-511.29,0.00026575,2]
[319487291,1710800026958,-1401.22,0.00026575,2]
[319487292,1710800026971,-500.0,0.00026575,2]
[319487293,1710800026985,-1432.28,0.00026575,2]
[319487294,1710800027003,-516.82,0.00026575,2]
[319487295,1710800027018,-500.0,0.00026575,2]
[319487296,1710800027033,-1305.33,0.00026575,2]
[319487297,1710800027048,-678.53,0.00026575,2]
[319487298,1710800027062,-581.47,0.00026575,2]
[319487299,1710800027078,-737.52,0.00026575,2]
[319487300,1710800027092,-1022.21,0.00026575,2]
[319487301,1710800027107,-1654.91,0.00026575,2]
[319487302,1710800027122,-745.31,0.00026575,2]
[319487303,1710800027137,-7202.93,0.00026575,2]
[319487304,1710800027153,-2992.02,0.00026575,2]